fUST/lending_fUST_20260223
["ID","MTS","AMOUNT","RATE_DAILY","PERIOD"]
[406362873,1771801838296,-500.0,0.00031998,2]
[406362874,1771801838311,-500.0,0.00031998,2]
[406362875,1771801838326,-500.0,0.00031998,2]
[406362876,1771801838337,-500.0,0.00031998,2]
[406362877,1771801838350,-500.0,0.00031998,2]
[406362878,1771801838362,-575.56842851,0.00031998,2]
[406362879,1771801838374,-500.0,0.00031998,2]
[406362880,1771801838387,-500.0,0.00031998,2]
[406362881,1771801838397,-500.0,0.00031998,2]
[406362882,1771801838408,-500.0,0.00031998,2]
[406362883,1771801838420,-500.0,0.00031998,2]
[406362884,1771801838430,-500.0,0.00031998,2]
[406362885,1771801838443,-500.0,0.00031998,2]
[406362886,1771801838455,-500.0,0.00031998,2]
[406362887,1771801838466,-500.0,0.00031998,2]
[406362888,1771801838477,-500.0,0.00031998,2]
[406362889,1771801838487,-501.09675012,0.00031999,15]
[406362890,1771801838498,-210.85850906,0.00031999,2]
[406362891,1771801838509,-353.13368591,0.00031999,2]
[406362892,1771801838520,-17942.66223826,0.00032,2]
[406362893,1771801838535,-21996.9406003,0.00032,2]
[406362894,1771801838549,-1777.77376106,0.00032,2]
[406362922,1771801840325,-2763.18370432,0.00032,2]
[406362929,1771801840386,-749.58,0.00032,2]
[406363300,1771801845813,-337.571711,0.00032,2]
[406363301,1771801845877,-4145.68929515,0.00032,2]
[406363302,1771801845887,-201.72638594,0.00032,2]
[406363303,1771801845898,-500.0,0.00032,2]
[406363304,1771801845908,-500.0,0.00032116,7]
[406363305,1771801845919,-500.0,0.00032274,2]
[406363306,1771801845930,-500.83948584,0.0003288,2]
[406363307,1771801845941,-194.090583,0.00033053,2]
[406363308,1771801845952,-242.22,0.0003321,2]
[406363309,1771801845962,-176.54698359,0.00033319,2]
[406363310,1771801845974,-3463.20961907,0.00033409,2]
[406363311,1771801845984,-14793.91395569,0.0003341,10]
[406363312,1771801846131,-465.3530032,0.0003341,10]
[406363313,1771801846149,-3037.00304111,0.0003341,10]
[406363314,1771801846160,-941.27787002,0.0003342,2]
[406363315,1771801846346,-334.49123493,0.0003342,2]
[406363316,1771801846574,-400.0,0.0003342,2]
[406363317,1771801846588,-3500.41603324,0.0003342,2]
[406363318,1771801846602,-699.93146069,0.0003342,2]
[406363319,1771801846614,-1599.7360181,0.0003342,2]
[406363346,1771802812143,999.88,0.00014,30]
[406363347,1771802826127,-1154.46659861,0.00024112,120]
[406363348,1771802826149,-156.0,0.00024356,2]
[406363349,1771802826170,-807.6959367,0.00029907,2]
[406363350,1771802826190,-182.0108097,0.0003037,2]
[406363353,1771802954083,-731.65314033,0.00024953,120]
[406363354,1771802958106,-231.61012791,0.00024953,120]
[406363390,1771803038078,-3181.98298428,0.00024726,11]
[406363391,1771803038088,-818.0,0.00024976,2]
[406363392,1771803038098,-150.0,0.00024977,2]
[406363393,1771803038107,-278.88470325,0.00025,2]
[406363394,1771803038117,-2189.4319909,0.00025,2]
[406363457,1771803040482,-1336.69165508,0.00025,2]
[406363459,1771803040491,-1200.0,0.00025599,2]
[406363461,1771803040501,-1452.2652939,0.000256,2]
[406363463,1771803040509,-300.0,0.00026574,2]
[406363465,1771803040519,-9366.30782795,0.0003,30]
[406363467,1771803040528,-1447.09557569,0.00030144,120]
[406363647,1771803043441,-2694.57267141,0.00030144,120]
[406363675,1771803046004,-970.01144154,0.00030144,120]
[406363676,1771803046013,-184.45515707,0.0003037,2]
[406363694,1771804053146,-677.50164141,0.00026312,2]
[406363695,1771804053172,-549.08442415,0.00026312,2]
[406363696,1771804053194,-150.0,0.00027397,5]
[406363697,1771804053216,-250.0,0.00027945,5]
[406363698,1771804053237,-150.0,0.00028,5]
[406363699,1771804053261,-350.0,0.00028493,5]
[406363700,1771804053284,-250.0,0.00028548,5]
[406363701,1771804053306,-236.93491323,0.0002879,7]
[406364374,1771804243458,-238.66113322,0.00027397,5]
[406364376,1771804243468,-150.0,0.00028,5]
[406364378,1771804243476,-200.0,0.00028548,5]
[406364380,1771804243486,-263.06508677,0.0002879,7]
[406364382,1771804243495,-384.27671046,0.00029273,2]
[406364530,1771804250582,289.66229907,0.00024953,11]
[406364531,1771804263141,300.0,0.00026574,2]
[406364533,1771804272335,464.89229601,0.00013273,2]
[406364534,1771804279015,500.0,0.00013273,2]
[406364535,1771804279057,1000.0,0.00013821,2]
[406364536,1771804284969,393.45452056,0.00013699,2]
[406364537,1771804881641,-300.0,0.00013099,2]
[406364538,1771804881668,-150.0,0.000131,2]
[406364539,1771804881695,-877.6306356,0.000131,2]
[406364540,1771804910896,-170.30066851,0.000131,2]
[406364541,1771805237133,-300.0,0.00012837,2]
[406364542,1771805237155,-2825.56193971,0.00012838,2]
[406364543,1771805237177,-177.0,0.00012969,2]
[406364544,1771805237196,-154.64899716,0.00013023,2]
[406364545,1771805237219,-606.0,0.000131,2]
[406364546,1771805237239,-500.0,0.00013273,2]
[406364547,1771805237260,-172.0,0.00013479,2]
[406364548,1771805237280,-606.54547944,0.00013699,2]
[406364549,1771805237300,-500.0,0.00013699,2]
[406364550,1771805237320,-500.0,0.00013821,2]
[406364551,1771805237342,-300.0,0.00014199,2]
[406364552,1771805237362,-150.0,0.000142,2]
[406364553,1771805237383,-3873.98480403,0.000142,2]
[406364554,1771805237403,-300.0,0.00014246,2]
[406364555,1771805237424,-1200.0,0.00014246,2]
[406364556,1771805237443,-300.0,0.00014246,2]
[406364557,1771805237462,-1000.0,0.00014247,2]
[406364558,1771805237481,-154.49450266,0.00014765,2]
[406364559,1771805237500,-150.0,0.000148,2]
[406364560,1771805237521,-154.49450266,0.00015233,2]
[406364561,1771805237540,-150.0,0.000153,2]
[406364562,1771805237560,-420.0,0.00015553,2]
[406364563,1771805237579,-420.0,0.00015603,2]
[406364564,1771805237600,-1680.0,0.0001567,2]
[406364565,1771805237620,-173.0,0.00017035,2]
[406364566,1771805237640,-276.63789255,0.00017161,2]
[406364567,1771805237661,-0.55095963,0.00017237,2]
[406364568,1771805347087,-268.92,0.000172,2]
[406364569,1771805347108,-805.44904037,0.00017237,2]
[406364570,1771805347127,-300.0,0.00017808,2]
[406364571,1771805347146,-151.0381072,0.00017808,2]
[406364572,1771805347167,-500.0,0.0001982,2]
[406364573,1771805347187,-176.03821592,0.0001982,2]
[406364574,1771805347210,-355.52037224,0.0001982,2]
[406364575,1771805347232,-500.0,0.0001982,2]
[406364576,1771805347252,-500.0,0.0001982,2]
[406364577,1771805347272,-500.0,0.0001982,2]
[406364578,1771805347292,-613.76910422,0.0001982,2]
[406364579,1771805347313,-228.94857343,0.0001982,2]
[406364580,1771805347332,-59757.9494311,0.00019821,2]
[406364581,1771805347351,-247.19358013,0.00021252,2]
[406364582,1771805347370,-711.392745,0.00021354,2]
[406364583,1771805347391,-6237.5913132,0.00021844,2]
[406364584,1771805347413,-784.95678197,0.00023843,2]
[406364585,1771805347433,-1391.7947486,0.00024628,2]
[406364586,1771805347454,-508.39649206,0.00024658,2]
[406364587,1771805347473,-202.77251872,0.00025098,2]
[406364588,1771805363204,-1.36881429,0.00025098,2]
[406364589,1771805363230,-367.45439942,0.00025098,2]
[406364590,1771805363251,-192.82618816,0.00025098,2]
[406364624,1771805432222,-285.5515669,0.00019061,2]
[406364626,1771805432232,-705.0,0.00019061,2]
[406364628,1771805432241,-459.77282522,0.00023843,2]
[406364630,1771805432251,-310.5513851,0.00025249,2]
[406364632,1771805432260,-458.45832785,0.00025538,16]
[406364635,1771805432271,-500.0,0.00025538,2]
[406364636,1771805432280,-500.0,0.00025538,2]
[406364638,1771805432289,-447.93658321,0.00025539,2]
[406364694,1771805438529,-8309.60400419,0.00025539,2]
[406364696,1771805438543,-500.0,0.00026847,15]
[406364699,1771805438553,-500.0,0.00026847,2]
[406364701,1771805438562,-500.0,0.00026847,10]
[406364703,1771805438572,-500.0,0.00026847,16]
[406364705,1771805438582,-348.26373868,0.00027202,2]
[406364706,1771805438593,-500.0,0.00028651,7]
[406364707,1771805438602,-347.39852298,0.00028718,2]
[406364708,1771805438611,-245.45131306,0.0002888,2]
[406364709,1771805438620,-324.0,0.00029,2]
[406364710,1771805438630,-320.79533897,0.00029875,2]
[406364711,1771805438648,-151.82722621,0.0003,14]
[406364712,1771805438659,-876.8481431,0.0003004,2]
[406364713,1771805438668,-397.61768564,0.0003011,2]
[406364714,1771805438677,-176.54698355,0.0003011,2]
[406364715,1771805438687,-151.0,0.00030403,7]
[406364716,1771805438696,-151.0,0.00030403,7]
[406364717,1771805438705,-2101.1289855,0.00030504,2]
[406364718,1771805438715,-181.5679265,0.00030504,2]
[406364719,1771805438725,-744.00654836,0.00031084,2]
[406364720,1771805438734,-151.0,0.00031087,7]
[406364721,1771805438744,-500.0,0.00031288,2]
[406364722,1771805438753,-500.0,0.00031288,2]
[406364723,1771805438762,-150.8498849,0.00031289,2]
[406364724,1771805438771,-153.212783,0.00031289,7]
[406364725,1771805438780,-2824.26616143,0.00031663,2]
[406364726,1771805438790,-600.0,0.00031683,30]
[406364727,1771805438799,-500.0,0.00031726,8]
[406364728,1771805438808,-150.0,0.00031726,8]
[406364729,1771805438817,-500.0,0.00031726,8]
[406364730,1771805438827,-157.89058992,0.00031726,8]
[406364731,1771805438842,-178.31481418,0.00031726,8]
[406364732,1771805438852,-150.0,0.00031726,8]
[406364733,1771805438861,-179.30767825,0.0003178,2]
[406364734,1771805438871,-500.0,0.00031781,8]
[406364735,1771805438880,-213.90317119,0.00031781,8]
[406364736,1771805438889,-500.0,0.00031781,8]
[406364737,1771805438899,-150.0,0.00031781,8]
[406364738,1771805438909,-704.88260373,0.00031809,7]
[406364739,1771805438919,-156.189,0.00031818,2]
[406364740,1771805438928,-500.0,0.00031836,8]
[406364741,1771805438938,-500.0,0.00031836,8]
[406364742,1771805438948,-150.0,0.00031836,8]
[406364743,1771805438958,-500.0,0.0003189,8]
[406364744,1771805438968,-185.41525337,0.0003189,8]
[406364745,1771805439073,-238.39671084,0.0003189,8]
[406364746,1771805439086,-500.0,0.0003189,8]
[406364747,1771805439096,-500.0,0.00031945,8]
[406364748,1771805439106,-500.0,0.00032,8]
[406364749,1771805439115,-381.0,0.00032,8]
[406364750,1771805439124,-711.392745,0.0003203,2]
[406364751,1771805439134,-500.0,0.00032055,8]
[406364752,1771805439143,-500.0,0.0003211,8]
[406364753,1771805439152,-500.0,0.00032164,8]
[406364754,1771805439162,-500.0,0.00032164,8]
[406364755,1771805439171,-275.2436438,0.00032219,8]
[406364756,1771805439181,-194.090583,0.00032438,2]
[406364757,1771805439191,-500.0,0.00032438,8]
[406364758,1771805439200,-515.92331516,0.00032712,8]
[406364759,1771805439209,-500.0,0.00033318,15]
[406364760,1771805439219,-500.0,0.00033318,2]
[406364761,1771805439228,-508.17256698,0.00033318,10]
[406364762,1771805439238,-388.61,0.00033318,16]
[406364763,1771805439248,-2824.26616143,0.0003341,2]
[406364764,1771805439257,-500.0,0.00033419,15]
[406364765,1771805439267,-500.0,0.00033419,15]
[406364766,1771805439276,-500.0,0.00033419,2]
[406364767,1771805439285,-500.0,0.00033419,2]
[406364768,1771805439295,-173.03550609,0.00033419,7]
[406364769,1771805439305,-5057.43566261,0.0003342,2]
[406365065,1771805443643,-256.7640434,0.00019061,2]
[406365066,1771805443653,-256.7640434,0.00021545,2]
[406365067,1771805443662,-256.7640434,0.00024028,2]
[406365068,1771805443672,-256.7640434,0.00026512,2]
[406365069,1771805443682,-2429.33730303,0.00031736,2]
[406365070,1771805443693,-2564.1144138,0.00031736,2]
[406365071,1771805443702,-1035.89203283,0.0003342,2]
[406365072,1771805443713,-3099.73327944,0.0003342,2]
[406365078,1771805446361,-26637.59862371,0.0003342,2]
[406365079,1771805446371,-200.0,0.00033815,36]
[406365080,1771805446381,-151.0,0.00034319,2]
[406365081,1771805446390,-151.0,0.00034319,2]
[406365082,1771805446400,-209.40437684,0.00034319,2]
[406365083,1771805446409,-151.0,0.00034319,2]
[406365084,1771805446418,-151.0,0.00034319,2]
[406365085,1771805446427,-217.15233878,0.00034319,2]
[406365086,1771805446436,-151.0,0.00034319,2]
[406365087,1771805446445,-225.18697532,0.00034319,2]
[406365088,1771805446455,-151.0,0.00034319,2]
[406365089,1771805446463,-151.0,0.00034319,2]
[406365090,1771805446472,-233.51889341,0.00034319,2]
[406365091,1771805446481,-151.0,0.00034319,2]
[406365092,1771805446490,-242.15909246,0.00034319,2]
[406365093,1771805446500,-151.0,0.00034319,2]
[406365094,1771805446509,-151.0,0.00034319,2]
[406365095,1771805446519,-251.11897888,0.00034319,2]
[406365096,1771805446528,-170.07839991,0.00034319,2]
[406365097,1771805446538,-260.4103811,0.00034319,2]
[406365098,1771805446548,-270.0455652,0.00034319,2]
[406365099,1771805446558,-280.03725112,0.00034319,2]
[406365100,1771805446567,-290.39862941,0.00034319,2]
[406365101,1771805446577,-301.1433787,0.00034319,2]
[406365102,1771805446587,-176.54698355,0.000347,2]
[406365103,1771805446596,-5057.999999,0.00036,30]
[406365104,1771805446605,-500.0,0.00036568,30]
[406365105,1771805446615,-500.0,0.000374,30]
[406365106,1771805446624,-429.93,0.00038,60]
[406365107,1771805446633,-7352.86,0.00038306,10]
[406365108,1771805446643,-9737.09,0.00038336,10]
[406365109,1771805446653,-11684.51,0.00038346,10]
[406365110,1771805446662,-151.0,0.00038356,120]
[406365111,1771805446671,-151.0,0.00038356,120]
[406365112,1771805446680,-151.0,0.00038356,120]
[406365113,1771805446689,-151.0,0.00038356,120]
[406365114,1771805446699,-151.0,0.00038356,120]
[406365115,1771805446708,-151.0,0.00038356,120]
[406365116,1771805446717,-151.0,0.00038356,120]
[406365117,1771805446726,-300.06726,0.00038356,120]
[406365118,1771805446735,-219.645019,0.00038356,120]
[406365119,1771805446744,-151.0,0.00038356,120]
[406365121,1771805446753,-291.491713,0.00038356,120]
[406365122,1771805446762,-151.0,0.00038356,120]
[406365123,1771805446771,-3107.50631569,0.00038439,10]
[406365124,1771805446783,-10913.90368431,0.00038439,10]
[406365125,1771805446792,-511.96308812,0.00038449,15]
[406365126,1771805446802,-2824.26616143,0.0003849,3]
[406365127,1771805446811,-2493.28916841,0.000385,45]
[406365128,1771805549853,200.23603066,0.000157,120]
[406365130,1771806445174,-331.89360994,0.00012838,2]
[406365131,1771806445196,-1154.46659861,0.00012968,2]
[406365132,1771806445218,-150.0,0.00013033,2]
[406365133,1771806445240,-610.0,0.00013365,2]
[406365134,1771806445261,-191.36,0.000135,2]
[406365135,1771806445283,-177.0,0.00015033,2]
[406365136,1771806445303,-1159.92770975,0.000157,2]
[406365137,1771806448097,-235.33565321,0.00013699,2]
[406365138,1771806448122,-265.99305765,0.00013699,2]
[406365139,1771806448143,-126.72954025,0.000157,2]
[406365140,1771806448164,-551.576814,0.00016242,2]
[406365141,1771806448185,-260.75787268,0.00016452,2]
[406365145,1771806553192,-231.61012791,0.00013562,2]
[406365146,1771806553214,-2189.00068872,0.00016452,2]
[406365147,1771806553234,-193.00727,0.00016535,2]
[406365148,1771806553253,-150.0,0.00017,2]
[406365149,1771806553274,-204.0,0.00017033,2]
[406365150,1771806553293,-150.0,0.000176,2]
[406365151,1771806553312,-176.54698355,0.000179,2]
[406365152,1771806553332,-300.0,0.00017998,2]
[406365153,1771806553352,-149.19570082,0.00017999,2]
[406365154,1771806554099,-129.44142844,0.00017999,2]
[406365155,1771806554122,-500.0,0.00017999,2]
[406365156,1771806554148,-500.0,0.00017999,2]
[406365157,1771806554170,-500.0,0.00017999,2]
[406365158,1771806554190,-177.28415072,0.00017999,2]
[406365159,1771806554214,-500.0,0.00017999,2]
[406365160,1771806554238,-500.0,0.00017999,2]
[406365161,1771806554260,-500.0,0.00017999,2]
[406365162,1771806554284,-500.0,0.00017999,2]
[406365163,1771806554306,-197.16051181,0.00017999,2]
[406365164,1771806554329,-453.96314953,0.00017999,2]
[406365165,1771806554351,-458.58925999,0.00017999,2]
[406365166,1771806554373,-500.0,0.00017999,2]
[406365167,1771806554396,-118255.40307219,0.00018,2]
[406365168,1771806554422,-50573.40303567,0.00018,2]
[406365169,1771806554443,-150.0,0.000181,2]
[406365170,1771806554463,-150.0,0.000187,2]
[406365171,1771806554483,-26207.0119881,0.00019033,2]
[406365172,1771806554504,-231.0,0.00019033,2]
[406365173,1771806554523,-150.0,0.000192,2]
[406365174,1771806554544,-420.0,0.00019638,2]
[406365175,1771806554564,-150.0,0.000198,2]
[406365176,1771806554584,-150.0,0.000203,2]
[406365177,1771806554603,-150.0,0.000209,2]
[406365178,1771806554623,-1451.2853446,0.00021007,2]
[406365179,1771806554644,-180.0,0.00021427,2]
[406365180,1771806554748,-150.0,0.00024658,2]
[406365181,1771806554769,-500.0,0.00024658,2]
[406365182,1771806554792,-500.0,0.00024658,2]
[406365183,1771806554813,-500.0,0.00024658,2]
[406365184,1771806554834,-500.0,0.00024658,2]
[406365185,1771806554855,-500.0,0.00024658,2]
[406365186,1771806554876,-500.0,0.00024658,2]
[406365187,1771806554897,-500.0,0.00024658,2]
[406365188,1771806554918,-500.0,0.00024658,2]
[406365189,1771806554940,-500.0,0.00024658,2]
[406365190,1771806554960,-500.0,0.00024658,2]
[406365191,1771806554981,-500.0,0.00024658,2]
[406365192,1771806555002,-500.0,0.00024658,2]
[406365193,1771806555023,-500.0,0.00024658,2]
[406365194,1771806555043,-500.0,0.00024658,2]
[406365195,1771806555065,-500.0,0.00024658,2]
[406365196,1771806555086,-500.0,0.00024658,2]
[406365197,1771806555106,-227.55686762,0.00024658,2]
[406365198,1771806555127,-500.0,0.00024658,2]
[406365199,1771806555153,-500.0,0.00024658,2]
[406365200,1771806555176,-500.0,0.00024658,2]
[406365201,1771806555198,-500.0,0.00024658,2]
[406365202,1771806555221,-500.0,0.00024658,2]
[406365203,1771806555242,-500.0,0.00024658,2]
[406365204,1771806555265,-500.0,0.00024658,2]
[406365205,1771806555286,-500.0,0.00024658,2]
[406365206,1771806555307,-500.0,0.00024658,2]
[406365207,1771806555329,-500.0,0.00024658,2]
[406365208,1771806555350,-500.0,0.00024658,2]
[406365209,1771806555371,-500.0,0.00024658,2]
[406365210,1771806555390,-4801.25247442,0.000249,2]
[406365211,1771806555411,-1200.0,0.00024996,2]
[406365212,1771806555431,-552.93471018,0.00024999,16]
[406365213,1771806555451,-500.0,0.00024999,15]
[406365214,1771806555472,-500.0,0.00024999,16]
[406365215,1771806555491,-10819.45929843,0.00025,15]
[406365247,1771806632336,-731.65314033,0.0002475,2]
[406365248,1771806632346,-159.34685967,0.00024899,2]
[406365252,1771806632372,-68.19981052,0.00024899,2]
[406365254,1771806632382,-209.05019048,0.000249,2]
[406365340,1771806638774,-4549.03737487,0.000249,2]
[406365341,1771806638783,-556.0,0.00024999,2]
[406365342,1771806638793,-30754.78267087,0.00025,15]
[406365343,1771806638803,-2895.53844763,0.00025,2]
[406365344,1771806638814,-3355.59035159,0.00025,2]
[406365345,1771806638826,-2189.4319909,0.00025,2]
[406365346,1771806638837,-2002.89857695,0.00025,2]
[406365361,1771806643804,-3759.17189487,0.00025,2]
[406365362,1771806643814,-160.35717755,0.00025,2]
[406365363,1771806643823,-250.0,0.00025205,2]
[406365364,1771806643832,-461.28404826,0.00025753,2]
[406365365,1771806643841,-2126.55079515,0.00026,2]
[406365366,1771806643851,-349.63651819,0.00027953,4]
[406365367,1771806643860,-592.74183876,0.00028436,2]
[406365368,1771806643871,-410.27974719,0.00028436,2]
[406365369,1771806643882,-89.28754789,0.00028436,2]
[406365370,1771806643891,-195.04599048,0.00029999,2]
[406365371,1771806643903,-1715.55823258,0.0003,30]
[406365372,1771806644079,-256.2,0.0003,30]
[406365373,1771806644091,-3358.36186288,0.0003,30]
[406365387,1771806646729,-891.69680009,0.0003,30]
[406365388,1771806646740,-836.92744602,0.0003,30]
[406365389,1771806646751,-6096.51223876,0.0003,30]
[406365390,1771806646760,-7991.47930393,0.00030144,120]
[406365391,1771806646770,-193.00727,0.00030233,60]
[406365392,1771806646779,-744.00654836,0.00031079,2]
[406365393,1771806646789,-500.0,0.00031779,2]
[406365394,1771806646799,-2400.62623721,0.0003199,2]
[406365395,1771806646808,-337.571711,0.00032,2]
[406365396,1771806646817,-7957.61,0.000329,14]
[406365397,1771806646826,-418.68850579,0.00033659,2]
[406365398,1771806646836,-744.60490494,0.00034319,2]
[406365399,1771806646845,-1340.28882889,0.00034319,2]
[406365400,1771806646854,-208.8302788,0.00034319,2]
[406365401,1771806646864,-375.89450184,0.00034319,2]
[406365402,1771806646873,-2382.7356958,0.00034319,2]
[406365403,1771806646882,-668.25689217,0.00034319,2]
[406365404,1771806646892,-600.0,0.00035004,30]
[406365405,1771806646901,-2479.4681354,0.00036413,2]
[406365406,1771806646910,-386.92,0.00038,60]
[406365407,1771806646920,-151.0,0.00038489,120]
[406365408,1771806646929,-500.0,0.00038489,3]
[406365409,1771806646938,-500.0,0.00038489,3]
[406365410,1771806646947,-500.0,0.00038489,3]
[406365411,1771806646957,-500.0,0.00038489,3]
[406365412,1771806646966,-500.0,0.00038489,3]
[406365413,1771806646975,-500.0,0.00038489,3]
[406365414,1771806646985,-500.0,0.00038489,3]
[406365415,1771806646995,-500.0,0.00038489,3]
[406365416,1771806647004,-500.0,0.00038489,3]
[406365417,1771806647016,-500.0,0.00038489,3]
[406365418,1771806647025,-500.0,0.00038489,3]
[406365419,1771806647035,-209.40437684,0.00038489,3]
[406365420,1771806647046,-217.15233878,0.00038489,3]
[406365421,1771806647055,-225.18697532,0.00038489,3]
[406365422,1771806647064,-233.51889341,0.00038489,3]
[406365423,1771806647074,-242.15909246,0.00038489,3]
[406365424,1771806647084,-153.0,0.0003849,14]
[406365425,1771806647093,-153.0,0.0003849,14]
[406365426,1771806647102,-167.78723393,0.0003849,14]
[406365427,1771806647111,-153.0,0.0003849,14]
[406365428,1771806647121,-153.0,0.0003849,14]
[406365429,1771806647130,-153.0,0.0003849,14]
[406365430,1771806647140,-630.0,0.0003849,14]
[406365431,1771806647149,-153.0,0.0003849,14]
[406365432,1771806647159,-630.0,0.0003849,14]
[406365433,1771806647171,-153.0,0.0003849,14]
[406365434,1771806647180,-630.0,0.0003849,14]
[406365435,1771806647190,-277.918029,0.0003849,14]
[406365436,1771806647200,-630.0,0.0003849,14]
[406365437,1771806647209,-630.0,0.0003849,14]
[406365438,1771806647219,-630.0,0.0003849,14]
[406365439,1771806647229,-630.0,0.0003849,14]
[406365440,1771806647241,-630.0,0.0003849,14]
[406365441,1771806647251,-630.0,0.0003849,14]
[406365442,1771806647261,-630.0,0.0003849,14]
[406365443,1771806647271,-373.15818572,0.0003849,14]
[406365444,1771806647280,-151.0,0.0003849,120]
[406365445,1771806647290,-151.0,0.0003849,7]
[406365446,1771806647300,-151.0,0.0003849,120]
[406365447,1771806647309,-12500.0,0.000385,45]
[406365448,1771806647320,-198.909373,0.000385,7]
[406365449,1771806647329,-720.0,0.00038504,60]
[406365450,1771806647341,-151.0,0.0003898,120]
[406365451,1771806647350,-3950.52,0.0003899,10]
[406365452,1771806647360,-2400.62623721,0.0003899,3]
[406365453,1771806647371,-15393.45147745,0.00039,2]
[406365454,1771806647380,-12500.0,0.00039,45]
[406365455,1771806647390,-5312.55,0.00039,120]
[406365456,1771806647399,-151.0,0.00039,120]
[406365457,1771806647409,-169.00460919,0.00039,120]
[406365458,1771806647419,-194.090583,0.00039265,2]
[406365459,1771806647429,-842.35919976,0.00039479,2]
[406365460,1771806647438,-2400.62623721,0.0003949,3]
[406365461,1771806647448,-744.00654836,0.0003949,3]
[406365462,1771806647457,-9384.47536336,0.000395,10]
[406365463,1771806647466,-12500.0,0.000395,46]
[406365464,1771806647475,-64491.67904722,0.00039501,2]
[406365465,1771806701211,-189.34619746,0.000157,2]
[406365466,1771806701244,-693.02440396,0.000157,2]
[406365467,1771806730470,-64.31268788,0.000157,2]
[406365468,1771806730492,-60.7208217,0.000157,2]
[406365470,1771807553136,-291.77479411,0.00023678,2]
[406365471,1771807628137,-456.60036012,0.00023678,2]
[406365472,1771807628162,-249.63204791,0.00024016,2]
[406365473,1771807628183,-300.0,0.00024695,2]
[406365474,1771807628204,-300.0,0.0002593,2]
[406365475,1771807628225,-150.0,0.00027397,5]
[406365476,1771807628247,-518.3574773,0.00027793,30]
[406365477,1771807628265,-250.0,0.00027945,5]
[406365478,1771807628287,-150.0,0.00028,5]
[406365479,1771807628307,-500.0,0.00028493,5]
[406365480,1771807628328,-250.0,0.00028548,5]
[406365481,1771807628351,-3946.82278256,0.00028639,2]
[406365503,1771807831453,-687.11,0.00028439,2]
[406365506,1771807831467,-5507.6369705,0.00028439,2]
[406365508,1771807831478,-540.63037296,0.00028539,2]
[406365510,1771807831488,-1703.67391785,0.00028539,2]
[406365512,1771807831501,-164.64469953,0.00028639,2]
[406365514,1771807831514,-2058.8765896,0.00029869,2]
[406365516,1771807831525,-744.00654836,0.00031041,2]
[406365519,1771807831536,-2911.72122178,0.00033752,2]
[406365521,1771807831551,-680.925,0.00033752,2]
[406365533,1771807838976,-785.71251865,0.00033752,2]
[406365534,1771807838989,-904.42060499,0.00033752,2]
[406365535,1771807839000,-500.0,0.00033852,7]
[406365536,1771807839012,-306.64299512,0.00033852,7]
[406365537,1771807839028,-193.35700488,0.00033852,7]
[406365538,1771807839043,-500.0,0.00033852,7]
[406365539,1771807839059,-500.0,0.00033852,7]
[406365540,1771807839070,-500.0,0.00033852,7]
[406365541,1771807839081,-500.0,0.00033852,7]
[406365542,1771807839092,-500.0,0.00033852,7]
[406365543,1771807839103,-500.0,0.00033852,7]
[406365544,1771807839113,-500.0,0.00033852,7]
[406365545,1771807839123,-500.0,0.00033852,7]
[406365546,1771807839134,-500.0,0.00033852,7]
[406365547,1771807839144,-500.0,0.00033852,7]
[406365548,1771807839154,-500.0,0.00033852,7]